bitfinex/quotes_SOLUSD_20250922
["timestamp","ask_amount","ask_price","bid_price","bid_amount"]
[1758508275460,31.2,232.44,232.3,4.30462664]
[1758508275660,15.05635377,232.46,232.35,0.66]
[1758508275661,4.30255571,232.42,232.35,0.66]
[1758508276251,7.8023274,232.42,232.41,1e-08]
[1758508276655,40.44961003,232.42,232.41,1e-08]
[1758508276870,35.50255571,232.42,232.41,1e-08]
[1758508277157,4.84705432,232.44,232.41,0.66000001]
[1758508277355,4.30227203,232.44,232.41,1e-08]
[1758508277766,31.2,232.44,232.41,1e-08]
[1758508277969,31.2,232.45,232.41,1e-08]
[1758508278170,31.2,232.43,232.41,0.66000001]
[1758508278574,31.2,232.43,232.41,1e-08]
[1758508279054,31.2,232.43,232.41,0.66000001]
[1758508279671,35.50241603,232.43,232.41,0.66000001]
[1758508279883,4.30144528,232.48,232.42,0.66]
[1758508280180,31.2,232.45,232.42,0.66]
[1758508280379,31.2,232.45,232.43,0.66]
[1758508280681,31.2,232.47,232.44,0.66]
[1758508280864,2.83058259,232.46,232.44,0.66]
[1758508281048,10.7502442,232.56,232.45,0.66]
[1758508281254,2.83221985,232.52,232.45,0.66]
[1758508281770,31.2,232.49,232.45,0.66]
[1758508281961,31.2,232.49,232.46,0.66]
[1758508282163,2.83377257,232.48,232.47,0.66]
[1758508282482,35.5008688,232.52,232.47,0.66]
[1758508282675,31.2,232.49,232.43,0.66]
[1758508283066,46.25263208,232.52,232.43,0.66]
[1758508283379,31.2,232.49,232.41,1e-08]
[1758508283678,31.2,232.47,232.41,1e-08]
[1758508283850,4.30181536,232.46,232.41,1e-08]
[1758508284478,31.2,232.43,232.41,1e-08]
[1758508284860,0.68,232.42,232.41,1e-08]
[1758508285262,3.51055169,232.42,232.41,1e-08]
[1758508285464,2.83055169,232.42,232.41,1e-08]
[1758508285783,4.30255571,232.42,232.41,1e-08]
[1758508285979,31.2,232.44,232.41,1e-08]
[1758508286367,31.88,232.44,232.41,1e-08]
[1758508286574,2.82964915,232.43,232.41,1e-08]
[1758508286960,0.7,232.42,232.41,1e-08]
[1758508287164,7.83403475,232.42,232.41,1e-08]
[1758508287782,7.13220486,232.42,232.41,1e-08]
[1758508288660,7.83220486,232.42,232.41,1e-08]
[1758508293385,48.48255571,232.42,232.41,1e-08]
[1758508293573,51.31220486,232.42,232.41,1e-08]
[1758508295407,7.13220486,232.42,232.41,1e-08]
[1758508295587,48.48255571,232.42,232.41,1e-08]
[1758508295769,50.61220486,232.42,232.41,1e-08]
[1758508296222,4.30255571,232.42,232.41,1e-08]
[1758508296406,47.84255571,232.42,232.41,1e-08]
[1758508299307,47.70255571,232.42,232.41,1e-08]
[1758508300193,4.30255571,232.42,232.41,1e-08]
[1758508300395,47.68255571,232.42,232.41,1e-08]
[1758508300808,47.68255571,232.42,232.41,0.71000001]
[1758508301313,47.68255571,232.42,232.41,1e-08]
[1758508301517,48.38255571,232.42,232.41,1e-08]
[1758508301706,49.46026646,232.42,232.41,1e-08]
[1758508302405,52.27855402,232.42,232.41,1e-08]
[1758508306422,72.27855402,232.42,232.41,1e-08]
[1758508307617,31.2,232.37,232.31,1e-08]
[1758508307926,20.0,232.4,232.04,35.7226249]
[1758508307927,31.2,232.33,232.04,35.7226249]
[1758508308112,58.78450218,232.42,232.04,35.7226249]
[1758508308113,31.2,232.29,232.04,35.7226249]
[1758508308317,31.2,232.24,232.13,6.55856634]
[1758508308542,31.2,232.23,232.13,6.55856634]
[1758508308839,31.2,232.23,232.15,3.32555467]
[1758508309202,31.2,232.24,232.13,2.25065113]
[1758508309404,74.28,232.24,232.13,3.32555467]
[1758508309643,74.28,232.24,232.11,0.1]
[1758508309800,74.28,232.24,232.12,0.71]
[1758508310211,31.2,232.24,232.13,4.3079309]
[1758508310405,78.58594628,232.24,232.15,3.32555467]
[1758508310711,31.2,232.22,232.16,0.71]
[1758508311631,31.2,232.23,232.16,0.71]
[1758508312423,35.50613392,232.23,232.16,0.71]
[1758508312944,46.2713236,232.23,232.16,0.71]
[1758508313123,31.2,232.22,232.16,5.01735046]
[1758508314042,43.08,232.29,232.19,3.32555467]
[1758508314246,3.49180952,232.35,232.2,0.71]
[1758508314441,0.7,232.36,232.2,0.71]
[1758508314442,31.2,232.3,232.2,0.71]
[1758508314644,4.30496362,232.29,232.2,5.01656225]
[1758508314965,47.40422244,232.33,232.23,3.32555467]
[1758508315147,58.16477854,232.33,232.2,15.78314278]
[1758508315340,31.2,232.3,232.2,19.10869745]
[1758508315639,58.16477854,232.33,232.22,3.32555467]
[1758508315640,47.38422244,232.33,232.22,3.32555467]
[1758508315849,4.30422244,232.33,232.21,0.71]
[1758508316060,4.30401979,232.35,232.25,3.32555467]
[1758508316352,31.2,232.33,232.25,3.32555467]
[1758508316526,4.30401979,232.35,232.22,0.71]
[1758508316729,31.2,232.32,232.22,8.3417439]
[1758508317243,31.2,232.33,232.22,8.3417439]
[1758508317621,31.2,232.33,232.21,4.30634028]
[1758508317945,31.2,232.33,232.21,7.63189495]
[1758508318124,31.2,232.33,232.21,3.32555467]
[1758508318324,2.8189835,232.32,232.2,7.63215663]
[1758508318522,4.304593,232.31,232.2,7.63215663]
[1758508318722,4.304593,232.31,232.2,4.30660196]
[1758508318927,4.304593,232.31,232.22,3.32555467]
[1758508319134,35.504593,232.31,232.22,3.32555467]
[1758508319539,35.504593,232.31,232.21,0.7]
[1758508319738,35.504593,232.31,232.21,4.02555467]
[1758508319939,35.504593,232.31,232.21,3.32555467]
[1758508320736,35.504593,232.31,232.19,3.32555467]
[1758508320945,35.504593,232.31,232.18,3.32555467]
[1758508320946,31.2,232.28,232.18,3.32555467]
[1758508321262,31.2,232.26,232.11,0.1]
[1758508321424,31.2,232.26,232.12,3.32555467]
[1758508322025,31.2,232.26,232.11,0.1]
[1758508322355,31.2,232.26,232.12,3.32555467]
[1758508322652,31.2,232.22,232.13,3.32555467]
[1758508323069,31.2,232.22,232.12,4.30794054]
[1758508323229,31.88,232.22,232.11,0.1]
[1758508323633,31.2,232.2,232.11,0.1]
[1758508323828,31.2,232.16,232.11,0.1]
[1758508324042,31.2,232.12,232.11,0.1]
[1758508324358,74.38,232.13,232.11,0.1]
[1758508324535,4.98811649,232.12,232.11,0.1]
[1758508325030,48.40811649,232.12,232.11,0.1]
[1758508325440,44.18,232.12,232.11,0.1]
[1758508325749,0.68,232.12,232.11,0.1]
[1758508326234,31.88,232.12,232.11,0.1]
[1758508326631,75.46,232.12,232.11,0.1]
[1758508326841,0.68,232.12,232.11,0.1]
[1758508327040,35.50798982,232.13,232.11,0.1]
[1758508327335,0.68,232.12,232.11,0.1]
[1758508328032,0.68,232.12,232.11,1e-08]
[1758508329133,44.36,232.12,232.11,1e-08]
[1758508329558,0.68,232.12,232.11,1e-08]
[1758508329939,44.3,232.12,232.11,1e-08]
[1758508330135,0.68,232.12,232.11,1e-08]
[1758508330344,44.3,232.12,232.11,1e-08]
[1758508330538,0.68,232.12,232.11,1e-08]
[1758508330742,74.82,232.12,232.11,1e-08]
[1758508330957,75.54,232.12,232.11,1e-08]
[1758508331831,44.3,232.12,232.11,1e-08]
[1758508332241,47.11116911,232.12,232.11,1e-08]
[1758508333070,31.2,232.08,232.04,1e-08]
[1758508333285,31.2,232.04,232.01,1e-08]
[1758508333443,31.2,232.04,231.91,0.1]
[1758508333444,31.2,232.0,231.91,0.1]
[1758508333640,31.2,231.96,231.91,0.1]
[1758508333845,132.2,231.95,231.93,0.67]
[1758508334051,132.2,231.95,231.94,0.67]
[1758508335454,132.2,231.95,231.92,48.13257576]
[1758508335648,132.2,231.95,231.93,0.67]
[1758508336343,132.2,231.95,231.92,48.13257576]
[1758508336543,132.2,231.95,231.92,48.80257576]
[1758508336739,132.2,231.95,231.92,48.13257576]
[1758508337044,132.92,231.94,231.92,48.13257576]
[1758508337262,0.72,231.93,231.92,48.13257576]
[1758508337449,132.2,231.94,231.92,48.13257576]
[1758508337651,74.66,231.93,231.92,48.13257576]
[1758508337863,31.92,231.93,231.92,48.13257576]
[1758508338077,75.36,231.93,231.92,48.13257576]
[1758508338277,31.92,231.93,231.92,48.13257576]
[1758508338575,75.36,231.93,231.92,48.13257576]
[1758508338781,44.18,231.93,231.92,48.13257576]
[1758508339952,0.72,231.93,231.92,48.13257576]
[1758508340169,44.18,231.93,231.92,48.13257576]
[1758508340676,44.18,231.93,231.92,47.07257576]
[1758508340877,44.24,231.93,231.92,47.07257576]
[1758508341674,44.24,231.93,231.91,1e-08]
[1758508341675,4.31183166,231.92,231.91,1e-08]
[1758508342179,7.73343872,231.92,231.91,1e-08]
[1758508342870,35.51257547,231.88,231.87,1e-08]
[1758508343046,83.04418253,231.88,231.87,1e-08]
[1758508343239,103.67418253,231.88,231.87,1e-08]
[1758508343772,31.2,231.83,231.82,0.31937175]
[1758508344080,31.2,231.83,231.78,591.34314104]
[1758508344081,20.0,231.79,231.78,591.34314104]
[1758508344262,65.46,231.79,231.78,369.02366191]
[1758508344445,68.23985258,231.79,231.78,333.42366191]
[1758508344644,68.23985258,231.79,231.78,24.95402562]
[1758508344844,31.2,231.58,231.44,12.98588867]
[1758508345068,31.2,231.58,231.42,2.25227341]
[1758508345069,77.28,231.57,231.49,0.67]
[1758508345267,31.2,231.57,231.47,0.67]
[1758508345574,31.2,231.57,231.44,0.67]
[1758508345754,46.24,231.57,231.44,0.67]
[1758508345955,31.2,231.61,231.56,43.9138495]
[1758508346369,20.0,231.58,231.56,43.9138495]
[1758508346695,46.92,231.62,231.57,0.67]
[1758508346843,46.92,231.64,231.58,0.67]
[1758508347039,47.52,231.63,231.58,0.67]
[1758508347263,5.64714061,231.69,231.59,0.67]
[1758508347482,47.66,231.68,231.56,43.9138495]
[1758508347845,48.18,231.67,231.57,0.67]
[1758508348039,48.28,231.66,231.56,43.9138495]
[1758508348267,20.0,231.61,231.56,43.9138495]
[1758508348467,31.2,231.63,231.56,43.9138495]
[1758508348649,31.2,231.57,231.56,43.9138495]
[1758508348850,31.2,231.62,231.56,43.9138495]
[1758508349045,4.31704368,231.64,231.56,43.9138495]
[1758508349255,2.25206127,231.69,231.56,43.9138495]
[1758508349454,5.77032675,231.69,231.57,0.67]
[1758508349654,2.25206127,231.69,231.57,3.99555467]
[1758508349855,0.09206127,231.69,231.59,31.2]
[1758508350042,0.1,231.79,231.6,20.65]
[1758508350247,0.1,231.79,231.61,50.05]
[1758508350462,0.1,231.79,231.72,3.32555467]
[1758508350667,0.1,231.79,231.62,0.65]
[1758508350868,0.1,231.79,231.69,3.32555467]
[1758508351071,0.1,231.79,231.71,3.32555467]
[1758508351247,0.72,231.78,231.56,43.9138495]
[1758508351447,31.2,231.76,231.56,43.9138495]
[1758508351646,0.72,231.75,231.61,3.32555467]
[1758508351871,50.34,231.76,231.56,43.9138495]
[1758508352072,31.2,231.73,231.58,3.32555467]
[1758508352252,31.92,231.73,231.56,43.9138495]
[1758508352560,50.36,231.72,231.56,43.9138495]
[1758508352750,31.2,231.69,231.59,3.32555467]
[1758508352954,50.52,231.76,231.64,3.32555467]
[1758508353153,0.1,231.79,231.63,0.15]
[1758508353483,0.1,231.79,231.78,3.32555467]
[1758508353686,0.1,231.99,231.78,3.32555467]
[1758508353687,0.1,231.99,231.78,3.37555467]
[1758508353865,0.1,231.99,231.72,50.58]
[1758508353866,0.82,231.99,231.79,0.05]
[1758508354259,0.72,231.95,231.75,0.05]
[1758508354460,23.86053669,231.99,231.7,0.05]
[1758508354461,0.82,231.89,231.7,0.05]
[1758508354855,0.1,231.89,231.79,4.31424996]
[1758508355058,0.1,231.89,231.87,3.32555467]
[1758508355384,0.05,231.89,231.87,3.32555467]
[1758508355586,12.97662045,232.13,231.83,20.0]
[1758508355587,3.49252169,232.09,231.83,20.0]
[1758508355877,0.72,231.98,231.7,12.86073638]
[1758508356082,31.2,231.95,231.7,15.1055615]
[1758508356271,0.72,231.95,231.82,3.32555467]
[1758508356481,31.92,231.94,231.67,4.31643957]
[1758508356663,31.92,231.94,231.75,3.32555467]
[1758508356664,3.46781677,231.93,231.75,3.32555467]
[1758508356855,0.72,231.92,231.69,20.0]
[1758508357193,2.74781677,231.93,231.88,3.32555467]
[1758508357379,2.74781677,231.98,231.9,3.32555467]
[1758508357568,0.1,231.99,231.75,20.0]
[1758508357569,0.72,231.97,231.75,20.0]
[1758508357777,31.92,231.96,231.74,52.24]
[1758508358101,3.46781677,231.95,231.8,3.32555467]
[1758508358253,0.72,231.94,231.71,0.1]
[1758508358458,31.2,231.85,231.71,0.1]
[1758508358669,0.72,231.84,231.72,3.32555467]
[1758508358983,31.2,231.8,231.73,3.32555467]
[1758508359183,31.2,231.8,231.71,0.1]
[1758508359361,0.72,231.87,231.78,3.32555467]
[1758508359362,31.92,231.87,231.78,3.32555467]
[1758508359559,52.88,231.92,231.71,4.41572589]
[1758508359866,57.19192116,231.92,231.71,24.41572589]
[1758508360067,31.2,231.89,231.71,4.41572589]
[1758508360273,0.72,231.88,231.71,0.1]
[1758508360586,3.4736995,231.88,231.71,0.1]
[1758508360794,0.72,231.88,231.75,3.32555467]
[1758508360980,5.03276146,231.87,231.76,3.32555467]
[1758508361182,5.03276146,231.87,231.71,0.1]
[1758508361474,0.72,231.86,231.71,0.1]
[1758508361677,31.2,231.8,231.71,0.1]
[1758508361978,0.72,231.83,231.71,0.1]
[1758508362152,0.72,231.88,231.72,4.31555325]
[1758508362357,0.72,231.88,231.71,0.1]
[1758508362358,132.2,231.87,231.8,3.32555467]
[1758508362552,0.72,231.93,231.84,3.32555467]
[1758508362783,0.72,231.92,231.71,4.41558655]
[1758508363086,0.1,231.99,231.91,3.32555467]
[1758508363288,0.1,231.99,231.84,3.32555467]
[1758508363866,0.1,231.99,231.95,3.32555467]
[1758508364071,0.1,231.99,231.75,74.02]
[1758508364072,0.72,231.98,231.75,74.02]
[1758508364297,0.1,231.99,231.76,20.0]
[1758508364298,0.72,231.97,231.76,20.0]
[1758508364577,31.2,231.95,231.72,12.81611882]
[1758508364789,3.48767473,231.94,231.75,4.87401581]
[1758508364997,31.2,231.93,231.81,4.87401581]
[1758508365204,0.82,231.99,231.77,20.0]
[1758508365495,0.72,231.98,231.76,4.3147085]
[1758508365798,31.92,231.98,231.87,4.87401581]
[1758508366174,31.92,231.98,231.77,20.0]
[1758508366175,0.72,231.98,231.79,20.0]
[1758508366496,0.1,231.99,231.84,4.87401581]
[1758508366701,0.1,231.99,231.92,4.87401581]
[1758508366882,0.1,231.99,231.85,4.31313349]
[1758508367198,0.1,231.99,231.85,15.09596721]
[1758508367369,0.1,231.99,231.85,4.31313349]
[1758508367574,0.1,231.99,231.83,20.0]
[1758508367575,0.1,231.99,231.88,4.87401581]
[1758508367791,0.1,231.99,231.9,4.87401581]
[1758508368002,0.1,231.99,231.92,4.87401581]
[1758508368307,0.1,231.99,231.97,4.87401581]
[1758508368805,0.1,232.09,231.98,9.74803162]
[1758508369109,0.1,232.09,232.0,4.87401581]
[1758508369275,0.1,232.09,231.97,4.31085037]
[1758508369875,0.1,232.09,231.97,4.87401581]
[1758508370093,0.1,232.09,231.93,4.31155574]
[1758508370094,31.3,232.09,231.93,4.31155574]
[1758508370400,36.32871599,232.09,231.91,4.31189609]
[1758508370608,0.1,232.09,231.91,4.31189609]
[1758508370788,0.1,232.09,232.0,4.87401581]
[1758508370976,0.1,232.09,231.91,24.31189609]
[1758508371316,5.12871678,232.09,231.91,4.31189609]
[1758508371507,31.2,232.06,231.87,4.31258484]
[1758508371711,0.72,232.05,231.83,24.3134783]
[1758508371913,0.72,232.05,231.91,4.87401581]
[1758508372098,0.72,232.05,231.93,4.87401581]
[1758508372289,0.72,232.05,231.98,4.87401581]
[1758508372493,0.82,232.09,231.98,4.87401581]
[1758508372719,31.2,232.06,231.84,20.0]
[1758508372937,7.1900161,232.09,231.75,21.57452934]
[1758508372938,31.2,232.01,231.75,41.57452934]
[1758508373101,0.72,232.0,231.77,55.26]
[1758508373297,0.72,232.0,231.76,4.31473889]
[1758508373531,3.50153929,232.0,231.72,86.14884342]
[1758508373692,3.50153929,232.0,231.81,4.97401581]
[1758508373896,0.72,231.99,231.83,4.87401581]
[1758508374225,0.72,231.99,231.88,4.87401581]
[1758508374433,0.72,231.99,231.81,0.1]
[1758508374735,0.72,232.02,231.91,4.87401581]
[1758508374901,35.51015904,232.01,231.81,0.1]
[1758508375214,31.2,231.98,231.81,0.1]
[1758508375637,3.50412133,231.97,231.81,0.1]
[1758508375933,31.2,231.96,231.81,0.1]
[1758508376133,3.50412133,231.95,231.81,0.1]
[1758508377035,31.2,231.91,231.81,0.1]
[1758508377252,0.69,231.9,231.81,0.1]
[1758508378618,0.69,231.94,231.81,0.1]
[1758508378852,31.2,231.92,231.81,0.1]
[1758508379147,0.69,231.91,231.81,0.1]
[1758508379538,31.2,231.89,231.71,0.1]
[1758508379723,3.47809627,231.88,231.71,0.1]
[1758508380321,3.47809627,231.88,231.56,43.9138495]
[1758508380322,3.45345247,231.83,231.56,43.9138495]
[1758508380561,54.65345247,231.79,231.56,43.9138495]
[1758508380851,31.2,231.71,231.56,43.9138495]
[1758508381058,31.2,231.67,231.56,43.9138495]
[1758508381230,34.67809627,231.66,231.56,43.9138495]
[1758508381434,31.2,231.63,231.56,43.9138495]
[1758508381617,3.47389917,231.62,231.56,43.9138495]
[1758508381823,0.69,231.61,231.56,43.1938495]
[1758508382118,0.69,231.6,231.56,43.1938495]
[1758508382353,0.69,231.59,231.56,43.1938495]
[1758508382528,0.69,231.58,231.56,43.1938495]
[1758508382729,2.7819323,231.6,231.56,41.3138495]
[1758508382946,2.7819323,231.6,231.56,17.14438663]
[1758508383243,2.7819323,231.6,231.56,17.09438663]
[1758508383244,31.2,231.57,231.56,17.09438663]
[1758508383618,31.2,231.59,231.56,17.09438663]
[1758508384354,3.88416555,231.71,231.57,0.66]
[1758508384733,2.7790433,231.72,231.57,0.66]
[1758508384940,54.8,231.75,231.57,0.66]
[1758508385134,31.2,231.71,231.57,0.66]
[1758508385330,33.9790433,231.7,231.56,17.09438663]
[1758508385649,31.2,231.62,231.56,17.09438663]
[1758508385830,20.0,231.65,231.56,17.09438663]
[1758508385831,31.2,231.58,231.56,17.09438663]
[1758508386454,54.9,231.57,231.56,17.09438663]
[1758508386966,132.2,231.68,231.56,17.09438663]
[1758508386967,54.96,231.58,231.56,17.09438663]
[1758508387150,132.2,231.68,231.57,0.66]
[1758508387335,132.2,231.68,231.56,17.09438663]
[1758508387336,54.92,231.66,231.56,17.09438663]
[1758508387647,54.92,231.66,231.57,0.66]
[1758508388257,54.82,231.72,231.57,0.66]
[1758508388425,31.2,231.69,231.57,0.66]
[1758508388629,54.82,231.72,231.57,5.53401581]
[1758508388857,54.82,231.72,231.58,0.66]
[1758508389021,35.0846685,231.68,231.58,0.66]
[1758508389219,35.0846685,231.68,231.56,17.09438663]
[1758508389443,31.2,231.65,231.56,17.09438663]
[1758508389954,3.8846685,231.68,231.56,17.81438663]
[1758508390123,3.88416555,231.71,231.57,0.72]
[1758508390322,0.1,231.79,231.57,0.72]
[1758508390528,58.44299249,231.78,231.6,4.87401581]
[1758508390728,2.77723203,231.77,231.61,0.72]
[1758508390946,31.2,231.75,231.58,0.72]
[1758508391119,31.2,231.7,231.56,17.09438663]
[1758508391318,2.77723203,231.69,231.56,17.09438663]
[1758508391529,31.2,231.65,231.57,0.72]
[1758508391730,54.56,231.68,231.57,0.72]
[1758508392757,54.56,231.68,231.56,17.09438663]
[1758508392758,31.2,231.65,231.56,17.09438663]
[1758508393126,31.2,231.61,231.56,17.09438663]
[1758508393443,31.2,231.61,231.57,0.72]
[1758508393632,31.2,231.65,231.58,0.72]
[1758508394231,31.2,231.64,231.56,17.09438663]
[1758508394448,31.2,231.64,231.57,0.72]
[1758508394850,31.2,231.65,231.57,0.72]
[1758508395437,54.06,231.73,231.6,4.87401581]
[1758508395642,54.06,231.73,231.61,0.72]
[1758508395851,54.06,231.73,231.62,4.87401581]
[1758508396159,31.2,231.7,231.63,0.72]
[1758508396340,54.06,231.73,231.63,0.72]
[1758508396751,54.06,231.73,231.63,5.59401581]
[1758508396951,31.2,231.77,231.64,0.72]
[1758508397139,3.55144562,231.79,231.64,0.72]
[1758508397457,0.1,231.79,231.65,4.87401581]
[1758508397641,0.1,231.79,231.66,0.72]
[1758508397838,3.55148347,231.79,231.66,0.72]
[1758508398046,31.2,231.77,231.66,0.72]
[1758508398741,31.2,231.76,231.62,0.72]
[1758508399138,3.45199568,231.75,231.62,0.72]
[1758508399468,31.2,231.77,231.63,4.87401581]
[1758508399662,0.1,231.79,231.69,4.87401581]
[1758508399832,0.1,231.79,231.77,4.87401581]
[1758508400032,0.1,231.79,231.78,0.72]
[1758508400852,0.3,231.89,231.78,0.72]
[1758508401043,0.3,231.89,231.79,4.87401581]
[1758508401247,0.3,231.89,231.78,0.72]
[1758508401451,3.74995423,231.89,231.78,0.72]
[1758508401658,31.2,231.86,231.73,0.72]
[1758508401848,2.87628559,231.85,231.64,0.72]
[1758508402156,0.1,231.84,231.64,0.72]
[1758508402357,31.2,231.8,231.64,0.72]
[1758508402863,31.2,231.8,231.64,5.59401581]
[1758508403173,31.2,231.76,231.65,0.72]
[1758508403340,31.2,231.76,231.61,0.1]
[1758508403543,31.2,231.74,231.61,0.1]
[1758508403737,31.2,231.7,231.61,0.1]
[1758508403956,2.77436023,231.69,231.61,0.1]
[1758508404154,31.2,231.65,231.61,0.1]
[1758508405252,34.65363495,231.64,231.61,0.1]
[1758508405642,0.1,231.75,231.62,0.72]
[1758508405854,31.2,231.71,231.62,0.72]
[1758508406043,31.2,231.71,231.61,0.1]
[1758508407074,31.2,231.68,231.62,0.72]
[1758508407772,55.18,231.72,231.62,0.72]
[1758508408141,31.2,231.69,231.62,0.72]
[1758508408339,55.18,231.72,231.62,0.72]
[1758508408655,31.2,231.69,231.62,0.72]
[1758508409075,54.94,231.75,231.63,4.87401581]
[1758508409285,58.39202901,231.75,231.64,0.72]
[1758508409665,31.2,231.72,231.64,0.72]
[1758508409869,54.94,231.75,231.64,0.72]
[1758508410067,54.94,231.75,231.64,9.91095639]
[1758508410289,35.02,231.83,231.69,4.87401581]
[1758508410464,35.02,231.83,231.71,4.87401581]
[1758508410668,54.8,231.82,231.7,0.72]
[1758508410895,3.45006037,231.88,231.7,0.72]
[1758508410896,54.7,231.85,231.73,4.87401581]
[1758508411165,54.64,231.86,231.75,4.87401581]
[1758508411369,54.64,231.86,231.76,0.72]
[1758508411602,54.64,231.86,231.76,5.59401581]
[1758508411806,85.84,231.86,231.77,0.72]
[1758508412099,31.2,231.83,231.77,0.72]
[1758508412403,31.2,231.83,231.69,0.72]
[1758508412634,0.1,231.82,231.69,0.72]
[1758508412770,31.2,231.83,231.69,0.72]
[1758508413274,3.45110219,231.81,231.65,0.72]
[1758508413470,31.2,231.78,231.65,0.72]
[1758508413689,31.2,231.74,231.65,0.72]
[1758508414367,31.2,231.74,231.66,4.87401581]
[1758508414569,54.32,231.81,231.65,0.72]
[1758508414873,31.2,231.78,231.65,0.72]
[1758508415075,31.2,231.78,231.61,0.82]
[1758508415285,31.2,231.74,231.61,0.82]
[1758508415493,31.2,231.73,231.61,0.1]
[1758508415790,31.2,231.69,231.61,0.1]
[1758508416179,31.3,231.69,231.61,0.1]
[1758508416595,2.78958012,231.68,231.61,0.1]
[1758508417180,31.2,231.69,231.61,0.1]
[1758508417400,2.79296234,231.68,231.61,0.1]
[1758508417598,31.2,231.69,231.61,0.1]
[1758508417793,0.1,231.68,231.61,0.1]
[1758508417993,34.09310908,231.68,231.61,0.1]
[1758508418201,2.79310908,231.67,231.61,0.1]
[1758508419319,6.24643257,231.67,231.61,0.1]
[1758508419672,2.79310908,231.67,231.61,0.1]
[1758508419880,2.79310908,231.68,231.61,0.1]
[1758508420199,31.2,231.67,231.61,0.1]
[1758508420802,2.80086768,231.66,231.61,0.1]
[1758508421575,6.25422592,231.66,231.61,0.1]
[1758508421780,31.2,231.63,231.61,0.1]
[1758508422003,2.80086768,231.62,231.61,0.1]
[1758508422213,2.80086768,231.62,231.61,0.82]
[1758508422514,2.80086768,231.65,231.61,0.82]
[1758508423022,2.80086768,231.65,231.61,0.1]
[1758508423194,2.80086768,231.65,231.62,0.72]
[1758508423507,4.73937883,231.75,231.61,0.1]
[1758508423508,3.4717292,231.77,231.64,4.87401581]
[1758508423690,2.80823781,231.76,231.65,0.72]
[1758508424014,31.2,231.74,231.65,0.72]
[1758508424182,2.80823781,231.73,231.65,0.72]
[1758508424503,2.80823781,231.76,231.66,4.87401581]
[1758508424806,2.80823781,231.76,231.7,4.87401581]
[1758508424987,3.4717292,231.8,231.7,4.87401581]
[1758508425184,6.27996701,231.79,231.68,4.87401581]
[1758508425390,31.2,231.76,231.68,4.87401581]
[1758508425583,2.80823781,231.75,231.68,9.1902555]
[1758508425782,2.80823781,231.75,231.69,4.87401581]
[1758508426197,2.80823781,231.78,231.67,5.03645657]
[1758508426393,31.2,231.77,231.69,4.87401581]
[1758508426678,2.80823781,231.76,231.7,0.72]
[1758508426901,2.80823781,231.77,231.7,0.72]
[1758508427305,2.80823781,231.79,231.7,0.72]
[1758508427903,31.2,231.77,231.7,0.72]
[1758508428105,56.5317292,231.83,231.75,3.34229538]
[1758508428317,2.81292517,231.82,231.75,4.06229538]
[1758508428520,31.2,231.8,231.77,3.34229538]
[1758508428719,3.4717292,231.88,231.78,0.72]
[1758508428924,31.2,231.85,231.78,0.72]
[1758508429135,2.81343055,231.84,231.81,3.34229538]